bitfinex-derivatives/quotes_ETHF0:USTF0_20250712
["timestamp","ask_amount","ask_price","bid_price","bid_amount"]
[1752357752148,3.27095,2937.9,2937.8,30.431]
[1752357752448,3.27095,2937.9,2937.8,3.2078]
[1752357752651,3.27104,2937.4,2937.3,0.6538]
[1752357753156,3.27104,2937.4,2937.3,4.0572]
[1752357754249,2.28323,2937.1,2937.0,0.6538]
[1752357754451,3.27113,2937.1,2937.0,1.33453]
[1752357754753,3.27113,2937.1,2937.0,4.73793]
[1752357755753,2.5904,2937.1,2937.0,4.73793]
[1752357756853,3.27111,2937.1,2937.0,4.73793]
[1752357757152,2.5904,2937.1,2937.0,4.73793]
[1752357759257,4.50726,2937.8,2937.7,0.68057]
[1752357759846,6.41496,2937.8,2937.7,0.68057]
[1752357760551,6.41496,2937.8,2937.4,1.08725922]
[1752357760552,3.20719,2937.7,2937.6,1.34387]
[1752357760755,2.5266,2937.7,2937.6,1.34387]
[1752357761056,3.20717,2937.7,2937.6,1.34387]
[1752357761457,3.20717,2937.7,2937.6,0.6633]
[1752357761856,3.20717,2937.7,2937.6,1.34389]
[1752357764360,5.1155,2937.7,2937.6,2.73159]
[1752357764558,6.41497,2937.7,2937.6,1.34389]
[1752357765560,6.41497,2937.7,2937.6,0.6633]
[1752357765858,2.22389,2937.6,2937.5,0.68061]
[1752357766058,3.20719,2937.6,2937.5,0.68061]
[1752357767557,3.20719,2937.6,2937.5,1.34391]
[1752357770262,3.20719,2937.6,2937.5,0.6633]
[1752357770462,3.20719,2937.6,2937.5,1.34391]
[1752357770959,2.5266,2937.6,2937.5,1.34391]
[1752357771156,3.2078,2937.7,2937.6,0.68059]
[1752357771358,1.9077,2937.8,2937.7,2.051]
[1752357771557,1.9077,2937.8,2937.7,2.73157]
[1752357771757,1.9077,2937.8,2937.7,6.13497]
[1752357773262,2.58824,2937.8,2937.7,6.13497]
[1752357773467,3.20714,2937.8,2937.7,6.13497]
[1752357775666,2.5266,2937.8,2937.7,6.13497]
[1752357779473,3.20714,2937.8,2937.7,6.13497]
[1752357780876,3.20714,2937.8,2937.7,4.0667]
[1752357781077,3.20714,2937.8,2937.7,4.74727]
[1752357783476,2.5266,2937.3,2937.2,1.34398]
[1752357783676,2.5266,2937.3,2936.7,2.051]
[1752357783677,0.6189,2936.8,2936.7,2.051]
[1752357783877,0.6189,2936.8,2936.7,2.7318]
[1752357784078,0.6189,2936.8,2936.7,6.1352]
[1752357784277,2.5266,2936.8,2936.7,6.1352]
[1752357785982,4.8207,2937.2,2937.1,1.34401]
[1752357786283,0.994,2937.2,2937.1,6.13281]
[1752357786580,1.961,2937.2,2937.1,6.13281]
[1752357788981,2.6415,2938.0,2937.9,1.3307]
[1752357789176,3.24854,2937.8,2937.7,0.6308]
[1752357789482,3.24857,2937.7,2937.5,4.084]
[1752357789680,2.568,2937.4,2937.3,24.55346]
[1752357789877,3.2078,2937.9,2937.3,25.2568]
[1752357790077,0.607,2938.6,2938.5,1.5848]
[1752357790384,1.61647244,2938.6,2938.5,8.87638]
[1752357790581,1.601,2938.6,2938.5,5.47298]
[1752357790779,1.601,2938.6,2938.2,1.7011]
[1752357790780,1.601,2938.6,2938.2,3.2078]
[1752357790977,1.601,2938.2,2937.9,23.285]
[1752357791282,3.8148,2938.8,2938.7,3.21344]
[1752357791482,4.67140225,2938.8,2938.3,3.4034]
[1752357791687,0.607,2938.2,2938.1,4.51906]
[1752357791888,0.607,2938.2,2938.0,0.68048]
[1752357792082,1.574,2938.1,2938.0,4.71468]
[1752357792387,1.574,2938.1,2938.0,1.31128]
[1752357792685,1.574,2938.1,2938.0,3.21358]
[1752357793287,2.568,2938.1,2938.0,3.21358]
[1752357793485,3.24847,2938.1,2938.0,0.6308]
[1752357793685,2.568,2937.9,2937.8,1.31134]
[1752357794080,2.568,2937.9,2937.8,3.21364]
[1752357794488,1.961,2938.4,2938.2,1.9023]
[1752357794685,4.06440225,2938.3,2937.8,0.68054]
[1752357794887,1.28749,2938.1,2938.0,1.3113]
[1752357795388,3.24849,2938.1,2938.0,0.6308]
[1752357795588,3.24849,2938.1,2938.0,1.3113]
[1752357795891,3.24849,2938.1,2938.0,0.6308]
[1752357796385,3.24849,2938.1,2938.0,1.3113]
[1752357797486,3.24849,2938.1,2938.0,3.2136]
[1752357797487,1.574,2938.1,2938.0,3.2136]
[1752357797691,2.568,2938.1,2938.0,6.4214]
[1752357799092,2.568,2938.1,2938.0,9.8248]
[1752357800887,2.568,2938.1,2938.0,6.617]
[1752357801491,2.568,2938.3,2938.2,1.31125]
[1752357801692,2.568,2938.3,2938.2,5.66295]
[1752357801891,2.568,2938.3,2938.2,3.21355]
[1752357802086,3.2078,2938.7,2938.2,3.21355]
[1752357802087,1.601,2938.7,2938.6,1.5848]
[1752357802290,1.961,2938.8,2938.7,2.25944]
[1752357802486,1.961,2938.8,2938.7,3.21344]
[1752357802487,2.568,2938.8,2938.7,3.21344]
[1752357802691,2.568,2939.0,2938.9,2.26509]
[1752357802892,2.568,2939.0,2938.9,3.21339]
[1752357803091,3.2078,2939.4,2939.3,0.6802]
[1752357803295,4.7818,2939.4,2939.3,6.6167]
[1752357803492,4.7818,2939.4,2939.0,0.68026]
[1752357803493,1.574,2939.1,2939.0,0.68026]
[1752357803690,2.568,2939.1,2939.0,1.31106]
[1752357803889,2.568,2939.1,2939.0,2.26506]
[1752357804088,2.568,2939.1,2939.0,3.21336]
[1752357804292,1.601,2939.4,2939.3,1.5791]
[1752357804493,2.568,2939.4,2939.3,6.6167]
[1752357804691,2.568,2939.4,2939.3,3.2133]
[1752357807298,3.24817,2939.4,2939.3,3.2133]
[1752357807996,3.24817,2939.4,2939.3,1.5848]
[1752357808194,3.24817,2939.4,2939.3,0.6308]
[1752357808394,3.24817,2939.4,2939.3,1.311]
[1752357809701,2.568,2939.4,2939.3,3.2133]
[1752357810600,2.568,2939.4,2939.3,6.6167]
[1752357810895,1.961,2939.9,2939.8,3.21318]
[1752357811099,2.568,2939.9,2939.8,6.61658]
[1752357812097,3.24806,2939.9,2939.8,4.9882]
[1752357812301,3.24806,2939.9,2939.8,4.0342]
[1752357812497,2.568,2939.9,2939.8,4.0342]
[1752357812702,2.568,2939.9,2939.8,6.61658]
[1752357814697,3.24806,2939.9,2939.8,6.61658]
[1752357815003,3.24806,2939.9,2939.8,4.71428]
[1752357815199,1.574,2939.7,2939.3,4.1561]
[1752357815404,3.24813,2939.6,2939.5,6.61663]
[1752357815800,3.24813,2939.6,2939.5,3.21323]
[1752357815999,3.18963,2939.6,2939.5,0.6308]
[1752357816206,1.29765,2939.5,2939.4,24.66386]
[1752357816513,3.15437,2939.4,2939.3,3.2078]
[1752357816700,3.15437,2939.4,2939.3,3.8325]
[1752357817003,3.15437,2939.4,2939.3,4.5127]
[1752357818102,3.15437,2939.4,2939.3,3.8325]
[1752357818802,3.15437,2939.4,2939.3,0.6247]
[1752357819000,3.15437,2939.4,2939.3,4.5127]
[1752357819416,3.15437,2939.4,2939.3,3.8325]
[1752357819608,3.1544,2939.3,2939.2,23.376]
[1752357820804,1.70038,2939.6,2939.0,3.88805]
[1752357820805,0.6175,2939.1,2939.0,3.2078]
[1752357821001,3.15451,2938.8,2938.7,4.51283]
[1752357821302,3.15451,2938.8,2938.7,7.91623]
[1752357821509,3.15451,2938.8,2938.7,4.51283]
[1752357822309,3.15451,2938.8,2938.7,1.30503]
[1752357823110,3.15451,2938.8,2938.7,0.6247]
[1752357823609,1.29784,2938.7,2938.6,23.366]
[1752357823810,3.15454,2938.7,2938.6,23.366]
[1752357824912,3.15454,2938.7,2938.6,24.67106]
[1752357826916,3.2078,2938.9,2938.6,29.3274]
[1752357827207,0.6175,2938.6,2938.5,0.6247]
[1752357827414,3.15456,2938.6,2938.5,28.07648]
[1752357829011,2.4742,2938.6,2938.5,30.86576968]
[1752357829207,1.29774,2939.1,2939.0,0.6247]
[1752357829412,0.6175,2938.9,2938.7,4.08373]
[1752357829608,2.21901,2938.8,2938.7,4.70843]
[1752357829914,3.15451,2938.8,2938.7,1.30503]
[1752357830315,2.4742,2938.8,2938.7,1.30503]
[1752357831911,2.4742,2938.8,2938.7,3.23833]
[1752357832215,3.15451,2938.8,2938.7,2.558]
[1752357832415,3.15451,2938.8,2938.7,3.23834]
[1752357834921,2.4742,2938.8,2938.7,3.23834]
[1752357835622,3.15451,2938.8,2938.7,0.6247]
[1752357835818,3.15451,2938.8,2938.7,24.9532]
[1752357836122,3.15451,2938.8,2938.7,24.66404]
[1752357836621,3.15451,2938.8,2938.7,25.63354]
[1752357837218,1.61584,2938.7,2938.6,26.5608]
[1752357837413,2.4742,2938.7,2938.6,31.26924]
[1752357837618,2.4742,2938.7,2938.6,32.23304]
[1752357837817,3.15454,2938.7,2938.6,33.20254]
[1752357839820,3.15454,2938.7,2938.6,32.23874]
[1752357840419,3.15454,2938.7,2938.6,3.8325]
[1752357840625,3.15454,2938.7,2938.3,2.27463]
[1752357840626,2.4742,2938.4,2938.3,2.27463]
[1752357840927,3.15461,2938.4,2938.3,29.97983]
[1752357841535,2.4742,2938.4,2938.3,29.97983]
[1752357842125,3.15461,2938.4,2938.3,29.97983]
[1752357842620,2.4742,2938.4,2938.3,29.97983]
[1752357842824,3.15461,2938.4,2938.3,23.9627]
[1752357843128,3.15461,2938.4,2938.3,23.338]
[1752357843323,2.4742,2938.3,2938.1,0.68046]
[1752357843530,1.29795,2938.2,2938.1,4.08386]
[1752357843828,1.29795,2938.2,2938.1,27.41886]
[1752357843829,3.15465,2938.2,2938.1,27.41886]
[1752357844025,2.4742,2938.2,2938.1,28.04356]
[1752357844230,2.4742,2938.2,2938.1,29.97686]
[1752357844626,3.15465,2938.2,2938.1,29.97686]
[1752357845031,3.15465,2938.2,2938.1,29.01306]
[1752357846330,3.15465,2938.2,2938.1,29.91516]
[1752357846627,1.33437,2938.1,2938.0,3.2078]
[1752357846833,3.29197,2938.1,2938.0,28.77688]
[1752357847128,3.29197,2938.1,2938.0,29.67898]
[1752357847531,2.6115,2938.1,2938.0,29.67898]
[1752357848630,2.6115,2938.1,2938.0,4.7644]
[1752357848832,3.29204,2937.8,2937.7,1.33123]
[1752357849028,3.29204,2937.8,2937.7,1.33127]
[1752357850335,2.6115,2937.8,2937.7,1.33127]
[1752357850530,2.6115,2937.8,2937.7,3.13927]
[1752357850729,3.29204,2937.8,2937.7,3.13927]
[1752357851531,3.29204,2937.8,2937.7,0.6507]
[1752357851933,3.29204,2937.8,2937.7,1.33127]
[1752357852736,3.29207,2937.7,2937.6,3.2078]
[1752357853842,3.29207,2937.7,2937.6,4.53909]
[1752357855137,3.29207,2937.7,2937.6,3.8585]
[1752357855735,0.68059,2937.6,2937.5,23.33]
[1752357855940,3.29216,2937.3,2937.2,27.1775]
[1752357856238,3.29216,2937.3,2937.2,3.2078]
[1752357856436,3.29216,2937.3,2937.2,3.8585]
[1752357857841,3.29216,2937.3,2937.2,4.53918]
[1752357858440,3.29216,2937.3,2937.2,3.2078]
[1752357858636,3.29228,2936.9,2936.8,23.9697]
[1752357858830,3.29228,2936.9,2936.8,28.05387]
[1752357859538,0.68082,2936.6,2936.5,3.2078]
[1752357859739,3.29232,2936.6,2936.5,3.8585]
[1752357860435,3.29232,2936.6,2936.5,0.6507]
[1752357861237,3.29232,2936.6,2936.5,1.33155]
[1752357861542,3.29232,2936.6,2936.5,0.6507]
[1752357862439,1.9576,2936.9,2936.8,0.6507]
[1752357862644,3.29225,2936.9,2936.8,4.0541]
[1752357863042,3.29225,2936.9,2936.8,4.73488]
[1752357863637,2.6115,2936.9,2936.8,4.73488]
[1752357863839,3.29225,2936.9,2936.8,5.64078]
[1752357864046,2.6115,2936.9,2936.8,5.64078]
[1752357864245,3.29225,2936.9,2936.8,6.54288]
[1752357864545,2.6115,2936.9,2936.8,6.54288]
[1752357864945,3.29225,2936.9,2936.8,6.54288]
[1752357865245,2.6115,2936.9,2936.8,6.54288]
[1752357872154,3.29225,2936.9,2936.8,5.8621]
[1752357872456,0.6539,2936.6,2936.5,0.6507]
[1752357872650,1.33472,2936.6,2936.5,1.33155]
[1752357872953,3.29232,2936.6,2936.5,4.73495]
[1752357873455,2.6115,2936.6,2936.5,4.73495]
[1752357873754,2.6115,2936.6,2936.5,7.39893968]
[1752357874551,0.6539,2936.9,2936.8,0.6507]
[1752357874758,1.6301,2936.9,2936.8,3.99543968]
[1752357874951,2.31085,2936.9,2936.8,7.39883968]
[1752357875253,1.6301,2936.9,2936.8,7.39883968]
[1752357878955,2.31085,2936.9,2936.8,7.39883968]
[1752357879154,3.21125,2936.9,2936.8,6.54285]
[1752357879552,3.21125,2936.9,2936.8,5.8621]
[1752357879747,3.21125,2936.9,2936.8,6.54288]
[1752357880256,2.5305,2936.9,2936.8,6.54288]
[1752357880453,3.21125,2936.9,2936.8,6.54288]
[1752357882553,3.21125,2936.9,2936.8,5.8621]
[1752357882757,3.21125,2936.9,2936.8,6.54288]
[1752357883859,2.5385,2936.4,2936.3,5.7735]
[1752357884060,3.21937,2936.4,2936.3,28.1434]
[1752357884260,3.21937,2936.4,2936.3,33.20979]
[1752357885655,3.21937,2936.4,2936.3,32.5359]
[1752357885856,3.21937,2936.4,2936.3,31.5538]
[1752357886354,3.21937,2936.4,2936.3,32.23469]
[1752357886649,3.21937,2936.4,2936.3,31.5538]
[1752357886853,3.21937,2936.4,2936.3,30.6365]
[1752357887051,3.21937,2936.4,2936.3,3.2078]
[1752357887252,3.21937,2936.4,2936.3,26.5598]
[1752357887759,1.7023,2936.2,2936.0,3.2078]
[1752357887964,3.21944,2936.1,2936.0,3.8741]
[1752357888159,2.31904,2936.1,2936.0,1.5836]
[1752357888359,3.21944,2936.1,2936.0,4.987]
[1752357888960,3.21944,2936.1,2936.0,4.0697]
[1752357890366,3.21944,2936.1,2936.0,4.75066]
[1752357891161,3.21944,2936.1,2936.0,5.66796]
[1752357891362,3.21944,2936.1,2936.0,4.987]
[1752357891765,3.21944,2936.1,2936.0,4.0697]
[1752357891965,3.21944,2936.1,2936.0,4.75066]
[1752357892265,3.21944,2936.1,2936.0,4.0697]
[1752357893061,2.31908,2935.9,2935.8,1.5836]
[1752357893266,3.21948,2935.9,2935.8,24.0093]
[1752357894265,3.21948,2935.9,2935.8,24.69031]
[1752357895067,3.21948,2935.9,2935.8,24.0093]
[1752357895266,3.21948,2935.9,2935.8,24.69031]
[1752357896662,2.5385,2935.9,2935.8,1.34731]
[1752357896863,2.5385,2935.9,2935.8,2.26461]
[1752357897064,2.5385,2935.9,2935.8,3.24671]
[1752357897367,2.5385,2935.9,2935.8,6.65011]
[1752357898267,3.21948,2935.9,2935.8,6.65011]
[1752357898469,2.5385,2935.9,2935.8,6.65011]
[1752357898970,3.21948,2935.9,2935.8,6.65011]
[1752357900271,2.5385,2935.9,2935.8,6.65011]
[1752357900971,4.7669,2936.4,2936.3,3.24659]
[1752357901173,6.74926476,2936.4,2936.3,3.24659]
[1752357901374,5.7463,2936.4,2936.3,3.24659]
[1752357901873,5.7463,2936.4,2936.3,6.64999]
[1752357902068,5.7463,2936.8,2936.7,3.2465]
[1752357902277,3.2078,2936.8,2936.7,3.2465]
[1752357902474,3.2078,2936.8,2936.7,6.6499]
[1752357902769,2.5385,2937.0,2936.9,3.24645]
[1752357902974,3.54030604,2937.0,2936.9,6.64985]
[1752357903172,4.22103604,2937.0,2936.9,6.64985]
[1752357903363,3.21923,2937.0,2936.9,6.64985]
[1752357903774,2.5385,2937.0,2936.9,6.64985]
[1752357904070,3.21923,2937.0,2936.9,6.64985]
[1752357904377,3.21923,2937.0,2936.9,5.9691]
[1752357904971,3.21923,2937.0,2936.9,6.64985]
[1752357906073,3.21923,2937.0,2936.9,5.9691]
[1752357906273,3.21923,2937.0,2936.9,6.64985]
[1752357906879,3.21923,2937.0,2936.9,5.9691]
[1752357907067,3.21923,2937.0,2936.9,6.64985]
[1752357907367,3.21923,2937.0,2936.9,5.9691]
[1752357910981,3.21923,2937.0,2936.9,6.64985]
[1752357911884,3.21923,2937.0,2936.9,5.9691]
[1752357912078,3.21923,2937.0,2936.9,6.64985]
[1752357913982,3.21923,2937.0,2936.9,5.9691]
[1752357914483,2.5385,2937.0,2936.9,6.64985]
[1752357915078,4.8118,2937.2,2937.1,1.29851]
[1752357915384,5.7863,2937.2,2937.1,6.64371]
[1752357916284,7.32296968,2937.2,2937.1,0.68071]
[1752357916885,7.32296968,2937.2,2937.1,1.29851]
[1752357917584,6.46698,2937.2,2937.1,1.29851]
[1752357917785,3.25918,2937.2,2937.1,1.29851]
[1752357922084,2.5785,2937.2,2937.1,1.29851]
[1752357922284,3.25918,2937.2,2937.1,3.24031]
[1752357922686,2.5785,2937.2,2937.1,3.24031]
[1752357922885,3.25918,2937.2,2937.1,3.24031]
[1752357923783,2.5785,2937.2,2937.1,3.24031]
[1752357924185,2.5785,2937.2,2936.7,1.5594]
[1752357924186,3.25928,2936.8,2936.7,1.5594]
[1752357924392,4.11526968,2936.8,2936.7,0.6178]
[1752357924592,3.25928,2936.8,2936.7,0.6178]
[1752357925183,3.25928,2936.8,2936.7,2.5596]
[1752357925392,3.25928,2936.8,2936.7,3.2404]
[1752357925698,3.25928,2936.8,2936.7,6.6438]
[1752357925699,2.5785,2936.8,2936.7,6.6438]
[1752357926187,3.25928,2936.8,2936.7,6.6438]
[1752357928296,3.25928,2936.8,2936.7,5.963]
[1752357928498,3.25928,2936.8,2936.7,6.6438]
[1752357930400,3.25928,2936.8,2936.7,5.963]
[1752357930592,3.25928,2936.8,2936.7,0.6178]
[1752357930794,3.25935,2936.5,2936.4,0.6178]
[1752357931195,3.25935,2936.5,2936.4,6.64387]
[1752357933197,0.68087,2936.4,2936.3,3.2078]
[1752357933396,0.68087,2936.4,2935.2,3.67391348]
[1752357933397,0.6579,2936.0,2935.9,5.7674]
[1752357933601,3.25946,2936.0,2935.9,5.7674]
[1752357933801,3.25946,2936.0,2935.9,9.1708]
[1752357934498,3.25946,2936.0,2935.9,9.85178]
[1752357934997,3.25946,2936.0,2935.9,9.1708]
[1752357935205,3.25946,2936.0,2935.9,9.85178]
[1752357935897,3.25946,2936.0,2935.9,7.229]
[1752357936698,3.25946,2936.0,2935.9,4.0212]
[1752357937000,3.25946,2936.0,2935.9,0.6178]
[1752357937199,3.25946,2936.0,2935.9,1.29878]
[1752357937701,3.25946,2936.0,2935.9,0.6178]
[1752357938295,2.30231,2935.8,2935.7,26.48732]
[1752357938508,2.30231,2935.8,2935.7,25.8063]
[1752357938509,3.24831,2935.8,2935.7,25.8063]
[1752357938801,3.24831,2935.8,2935.7,29.89073]
[1752357939996,2.5673,2935.8,2935.7,29.89073]
[1752357940193,3.24831,2935.8,2935.7,29.89073]
[1752357940394,3.24831,2935.8,2935.7,5.9077]
[1752357940802,3.24831,2935.8,2935.7,6.58873]
[1752357941104,4.10429968,2935.8,2935.7,0.6251]
[1752357941701,3.24831,2935.8,2935.7,0.6251]
[1752357942198,1.32155,2935.7,2935.6,1.30615]
[1752357942406,1.32155,2935.7,2935.6,4.0285]
[1752357942603,1.32155,2935.7,2935.6,1.30615]
[1752357942801,3.24835,2935.7,2935.6,1.30615]
[1752357943405,2.5673,2935.7,2935.6,3.22985]
[1752357943607,3.24833,2935.7,2935.6,3.22985]
[1752357944108,3.24833,2935.7,2935.6,2.5488]
[1752357944308,3.24833,2935.7,2935.6,0.6251]
[1752357944710,3.24833,2935.7,2935.6,1.30615]
[1752357946010,3.24833,2935.7,2935.6,2.29225]
[1752357946211,3.24833,2935.7,2935.6,1.6112]
[1752357948612,3.24833,2935.7,2935.6,0.6251]
[1752357948914,2.5673,2935.5,2935.4,2.5488]
[1752357949106,2.5673,2935.5,2935.4,0.6251]
[1752357949304,2.5673,2935.5,2935.4,3.4034]
[1752357950724,2.5673,2935.4,2935.3,0.6251]
[1752357950915,2.5673,2935.4,2935.3,5.9522]
[1752357951810,2.5673,2935.4,2935.3,5.0146]
[1752357952712,2.5673,2935.4,2935.3,5.9522]
[1752357953417,1.6213,2935.0,2934.9,3.2078]
[1752357953619,3.42328968,2935.0,2934.9,3.2078]
[1752357953820,0.66038968,2935.0,2934.9,3.2078]
[1752357954017,1.51637936,2935.0,2934.9,3.2078]
[1752357954718,1.49648968,2935.0,2934.6,4.1939]
[1752357954923,1.49648968,2934.7,2934.6,4.1939]
[1752357955114,1.49648968,2934.7,2934.6,3.2078]
[1752357955820,3.37508968,2934.7,2934.6,4.1939]
[1752357956020,1.6213,2934.7,2934.6,5.7566]
[1752357956220,0.6405,2934.7,2934.6,5.7566]
[1752357956422,1.6213,2934.7,2934.6,5.7566]
[1752357958223,2.5191,2934.7,2934.6,5.7566]
[1752357959224,2.5191,2934.7,2934.6,2.5488]
[1752357962025,1.6213,2934.7,2934.6,2.5488]
[1752357963222,3.2078,2935.2,2934.6,2.5488]
[1752357963427,1.6213,2935.1,2935.0,2.5488]
[1752357967832,2.30247,2935.1,2935.0,2.5488]
[1752357969430,3.20287,2935.1,2935.0,2.5488]
[1752357973328,2.30247,2935.1,2935.0,2.5488]
[1752357977337,3.20287,2935.1,2935.0,2.5488]
[1752357978336,2.30247,2935.1,2935.0,2.5488]
[1752357979935,2.22207,2935.1,2935.0,2.5488]
[1752357980140,3.22097,2935.1,2935.0,2.5488]
[1752357982342,4.22561555,2935.1,2935.0,2.5488]
[1752357986343,3.32521555,2935.1,2935.0,2.5488]
[1752357987445,4.22561555,2935.1,2935.0,2.5488]
[1752357989134,0.68129,2934.6,2934.5,3.2078]
[1752357989442,3.24639,2934.6,2934.5,0.9943]
[1752357990142,4.25205681,2934.6,2934.5,0.9943]
[1752357990941,2.5651,2934.5,2934.4,0.9943]
[1752357991146,3.24646,2934.3,2934.2,2.6135]
[1752357991338,5.10811649,2934.3,2934.2,2.6135]
[1752357992245,2.34615,2933.9,2933.8,2.6135]
[1752357992442,3.24655,2933.9,2933.8,2.6135]
[1752357992837,3.24655,2933.9,2933.8,1.6511]
[1752357993041,1.3473,2933.7,2933.6,1.9567]
[1752357993248,7.31038968,2933.7,2933.6,2.6135]
[1752357994146,0.6658,2933.4,2933.3,0.6568]
[1752357994448,2.34626,2933.4,2933.3,0.6568]
[1752357994643,2.34626,2933.4,2933.3,2.6135]
[1752357996353,3.24786,2933.4,2933.3,2.6135]
[1752357996650,0.68156,2933.4,2933.3,3.29509]
[1752357996844,0.68156,2933.4,2933.3,2.6135]
[1752357997342,1.34436,2933.5,2933.4,3.23206]
[1752357997547,2.28516,2933.5,2933.4,3.23206]
[1752357997737,2.28516,2933.5,2933.4,3.23566386]
[1752357997945,3.2078,2933.7,2933.6,0.6077]
[1752357998145,3.2078,2933.7,2933.6,4.08800968]
[1752357998555,3.2078,2933.7,2933.6,3.23202]
[1752357999051,3.8893,2933.7,2933.6,3.23202]
[1752357999649,3.8893,2933.7,2933.6,2.5505]
[1752358000247,3.8893,2933.7,2933.6,3.23202]
[1752358000448,3.2078,2933.7,2933.6,3.23202]
[1752358001452,1.34426,2933.9,2933.8,1.28917]
[1752358001752,1.34426,2933.9,2933.8,3.23197]
[1752358002349,3.2078,2934.1,2933.9,0.9686]
[1752358002551,3.2078,2934.1,2934.0,3.23193]
[1752358003652,3.2078,2934.1,2934.0,4.08791968]
[1752358006242,0.68136,2934.3,2934.2,0.68138]
[1752358006447,0.68136,2934.3,2934.2,3.23188]
[1752358006854,0.68136,2934.3,2934.2,2.5505]
[1752358007953,0.68136,2934.3,2934.2,3.23188]
[1752358010151,3.2078,2934.4,2934.3,3.23186]
[1752358012650,3.2078,2934.7,2934.6,3.23179]
[1752358013952,3.2078,2935.2,2934.8,0.6077]
[1752358014156,5.49255,2935.2,2935.1,2.5505]
[1752358014356,7.39451395,2935.2,2935.1,2.5505]
[1752358014657,6.39365,2935.2,2935.1,2.5505]
[1752358015558,5.49255,2935.2,2935.1,2.5505]
[1752358016057,5.49255,2935.2,2935.1,3.23167]
[1752358016361,3.88895,2935.2,2935.1,2.5505]
[1752358016863,5.49255,2935.2,2935.1,2.5505]
[1752358017166,4.55175,2935.2,2935.1,3.23167]
[1752358017858,3.8706,2935.2,2935.1,3.23167]
[1752358018161,3.2078,2935.2,2935.1,3.23167]
[1752358018364,0.68115,2935.3,2935.2,1.28883]
[1752358018563,0.68115,2935.3,2935.2,2.26303]
[1752358018757,0.68115,2935.3,2935.2,3.23163]
[1752358019364,2.28471,2935.4,2935.3,1.28882]
[1752358019558,2.28471,2935.4,2935.3,3.23162]
[1752358020467,2.28471,2935.4,2935.3,2.5505]
[1752358023068,2.28471,2935.4,2935.3,3.23162]
[1752358023263,2.28471,2935.4,2935.3,2.5505]
[1752358023665,2.28471,2935.4,2935.3,3.23162]
[1752358023871,3.2078,2935.5,2935.4,3.2316]
[1752358025172,3.88881,2935.8,2935.7,2.5505]
[1752358025469,4.55161,2935.8,2935.7,2.5505]
[1752358028772,3.88881,2935.8,2935.7,2.5505]
[1752358029578,5.47201,2935.8,2935.7,2.5505]
[1752358029879,4.49161,2935.8,2935.7,2.5505]
[1752358030179,4.49161,2935.8,2935.7,3.23153]
[1752358031378,5.47201,2935.8,2935.7,2.5505]
[1752358032577,5.47201,2935.8,2935.7,3.23153]
[1752358032882,5.47201,2935.8,2935.7,2.5505]
[1752358033180,5.47201,2935.8,2935.7,3.23153]
[1752358033382,5.47201,2935.8,2935.7,2.5505]
[1752358033680,5.47201,2935.8,2935.7,3.23153]
[1752358034481,5.47201,2935.8,2935.7,2.5505]
[1752358035484,5.47201,2935.8,2935.7,3.23153]
[1752358035884,5.47201,2935.8,2935.7,2.5505]
[1752358036181,5.47201,2935.8,2935.7,3.23153]
[1752358036373,5.47201,2935.8,2935.7,2.5505]
[1752358038180,3.88881,2935.8,2935.7,3.23153]
[1752358038679,3.88881,2935.8,2935.7,2.5505]
[1752358038986,4.49161,2935.8,2935.7,2.5505]
[1752358039281,5.47201,2935.8,2935.7,2.5505]
[1752358039583,5.47201,2935.8,2935.7,3.23153]
[1752358040283,2.26421,2935.8,2935.7,3.23153]
[1752358040483,1.5832,2936.0,2935.9,1.8846]
[1752358040782,2.26417,2936.0,2935.9,2.5028]
[1752358041181,2.26417,2936.0,2935.9,3.18378]
[1752358041782,3.2078,2936.1,2936.0,1.29916]
[1752358041984,3.2078,2936.1,2936.0,4.03974968]
[1752358043087,3.2078,2936.1,2936.0,3.18376]
[1752358043589,4.791,2936.5,2936.4,0.68087]
[1752358043788,3.8106,2936.5,2936.4,3.18367]
[1752358043988,1.5832,2936.5,2936.4,3.18367]
[1752358044488,0.6028,2936.5,2936.4,3.18367]
[1752358044787,1.28365,2936.5,2936.4,2.5028]
[1752358045091,2.26405,2936.5,2936.4,3.18367]
[1752358046482,1.5832,2936.5,2936.4,3.18367]
[1752358046988,2.26405,2936.5,2936.4,3.18367]
[1752358047487,1.5832,2936.5,2936.4,3.18367]
[1752358047986,2.26405,2936.5,2936.4,3.18367]
[1752358048590,1.28363,2936.6,2936.5,1.29905]
[1752358048886,1.28363,2936.6,2936.5,3.18365]
[1752358049087,2.26403,2936.6,2936.5,3.18365]
[1752358049589,1.5832,2936.6,2936.5,3.18365]
[1752358049884,2.26402,2936.6,2936.5,3.18365]
[1752358050186,1.5832,2936.6,2936.5,3.18365]
[1752358050890,0.6028,2936.7,2936.6,0.6182]
[1752358051087,0.6028,2936.7,2936.6,2.5028]
[1752358051287,1.2836,2936.7,2936.6,3.18362]
[1752358051592,2.264,2936.7,2936.6,2.5028]
[1752358053387,2.26407,2936.4,2936.3,2.5028]
[1752358053690,3.16481,2936.2,2936.1,2.5028]
[1752358054985,4.02079968,2936.2,2936.1,2.5028]
[1752358055590,4.02079968,2936.2,2936.1,3.18374]
[1752358056586,4.02079968,2936.2,2936.1,2.5028]
[1752358057985,4.02079968,2936.2,2936.1,1.5298]